fUSD/lending_fUSD_20260512
["ID","MTS","AMOUNT","RATE_DAILY","PERIOD"]
[422078448,1778553055000,-677.72762675,0.00041181,2]
[422078454,1778553055000,-2500.0,0.00041181,2]
[422078447,1778553055000,-1058.00937616,0.00041181,2]
[422078449,1778553055000,-7994.63919858,0.00041181,2]
[422078450,1778553055000,-678.47260553,0.00041181,2]
[422078452,1778553055000,-219.98062099,0.00041181,2]
[422078481,1778553055000,-289.76658585,0.00041181,2]
[422078535,1778553055000,-500.0,0.00041181,2]
[422078490,1778553055000,-204.4080963,0.00041181,2]
[422078517,1778553055000,-500.0,0.00041181,16]
[422078520,1778553055000,-519.45300596,0.00041181,16]
[422078521,1778553055000,-500.0,0.00041181,60]
[422078519,1778553055000,-500.0,0.00041181,16]
[422078527,1778553055000,-500.0,0.00041181,2]
[422078518,1778553055000,-500.0,0.00041181,16]
[422078526,1778553055000,-500.0,0.00041181,2]
[422078524,1778553055000,-500.0,0.00041181,2]
[422078523,1778553055000,-409.92893761,0.00041181,2]
[422078522,1778553055000,-461.24105934,0.00041181,60]
[422078525,1778553055000,-500.0,0.00041181,2]
[422078529,1778553055000,-500.0,0.00041181,2]
[422078537,1778553055000,-500.0,0.00041181,2]
[422078538,1778553055000,-466.04533009,0.00041181,2]
[422078539,1778553055000,-500.0,0.00041181,4]
[422078534,1778553055000,-500.0,0.00041181,2]
[422078528,1778553055000,-500.0,0.00041181,2]
[422078530,1778553055000,-500.0,0.00041181,2]
[422078532,1778553055000,-500.0,0.00041181,2]
[422078531,1778553055000,-500.0,0.00041181,2]
[422078536,1778553055000,-500.0,0.00041181,2]
[422078533,1778553055000,-500.0,0.00041181,2]
[422078541,1778553055000,-500.0,0.00041181,4]
[422078540,1778553055000,-500.0,0.00041181,4]
[422078542,1778553055000,-500.0,0.00041181,4]
[422078516,1778553055000,-500.0,0.00041181,16]
[422078515,1778553055000,-500.0,0.00041181,16]
[422078484,1778553055000,-897.73340926,0.00041181,2]
[422078508,1778553055000,-3128.0,0.00041181,30]
[422078514,1778553055000,-500.0,0.00041181,16]
[422078485,1778553055000,-471.94585764,0.00041181,2]
[422078489,1778553055000,-518.69189631,0.00041181,2]
[422078491,1778553055000,-761.02213505,0.00041181,2]
[422078486,1778553055000,-150.0,0.00041181,2]
[422078488,1778553055000,-12976.38303086,0.00041181,2]
[422078495,1778553055000,-379.0,0.00041181,2]
[422078494,1778553055000,-1530.55704727,0.00041181,2]
[422078493,1778553055000,-201.47048351,0.00041181,2]
[422078496,1778553055000,-20000.0,0.00041181,2]
[422078504,1778553055000,-500.0,0.00041181,2]
[422078497,1778553055000,-468.21455986,0.00041181,2]
[422078499,1778553055000,-199.86359397,0.00041181,2]
[422078487,1778553055000,-610.0,0.00041181,2]
[422078498,1778553055000,-160.69601743,0.00041181,2]
[422078513,1778553055000,-500.0,0.00041181,16]
[422078502,1778553055000,-180.0,0.00041181,2]
[422078510,1778553055000,-18448.14978699,0.00041181,30]
[422078509,1778553055000,-516.72631145,0.00041181,60]
[422078507,1778553055000,-3000.0,0.00041181,30]
[422078512,1778553055000,-1967.27260988,0.00041181,5]
[422078506,1778553055000,-10130.0,0.00041181,30]
[422078505,1778553055000,-1990.0,0.00041181,2]
[422078511,1778553055000,-1001776.02822029,0.00041181,60]
[422078503,1778553055000,-5018.68485795,0.00041181,2]
[422078501,1778553055000,-5421.50724009,0.00041181,2]
[422078500,1778553055000,-1603.06440843,0.00041181,2]
[422078553,1778553056000,-500.0,0.00041181,4]
[422078557,1778553056000,-500.0,0.00041181,4]
[422078554,1778553056000,-500.0,0.00041181,4]
[422078552,1778553056000,-500.0,0.00041181,4]
[422078555,1778553056000,-500.0,0.00041181,4]
[422078548,1778553056000,-500.0,0.00041181,4]
[422078543,1778553056000,-500.0,0.00041181,4]
[422078549,1778553056000,-500.0,0.00041181,4]
[422078546,1778553056000,-500.0,0.00041181,4]
[422078550,1778553056000,-500.0,0.00041181,4]
[422078545,1778553056000,-500.0,0.00041181,4]
[422078551,1778553056000,-500.0,0.00041181,4]
[422078556,1778553056000,-500.0,0.00041181,4]
[422078547,1778553056000,-500.0,0.00041181,4]
[422078558,1778553056000,-500.0,0.00041181,4]
[422078544,1778553056000,-500.0,0.00041181,4]
[422078562,1778553056000,-100558.0,0.00041181,30]
[422078559,1778553056000,-500.0,0.00041181,4]
[422078568,1778553056000,-500.0,0.00041181,14]
[422078571,1778553056000,-500.0,0.00041181,14]
[422078570,1778553056000,-500.0,0.00041181,14]
[422078573,1778553056000,-500.0,0.00041181,14]
[422078572,1778553056000,-500.0,0.00041181,14]
[422078569,1778553056000,-500.0,0.00041181,14]
[422078575,1778553056000,-1224609.16145025,0.00041181,30]
[422078567,1778553056000,-500.0,0.00041181,14]
[422078566,1778553056000,-500.0,0.00041181,14]
[422078564,1778553056000,-50000.0,0.00041181,54]
[422078563,1778553056000,-50000.0,0.00041181,53]
[422078565,1778553056000,-500.0,0.00041181,14]
[422078560,1778553056000,-500.0,0.00041181,4]
[422078561,1778553056000,-280.57760253,0.00041181,4]
[422078574,1778553056000,-364.76,0.00041181,14]
[422078589,1778553057000,-251.85633892,0.00021692,2]
[422078587,1778553057000,-6383.28149325,0.00021692,2]
[422078586,1778553057000,-14065.44732926,0.00021692,2]
[422078585,1778553057000,-1208.68179918,0.00021692,2]
[422078583,1778553057000,-1988.74537169,0.00021692,2]
[422078584,1778553057000,-993.80145634,0.00021692,2]
[422078579,1778553057000,-152.0,0.00017827,2]
[422078581,1778553057000,-152.0,0.0002644,7]
[422078580,1778553057000,-152.0,0.00026405,7]
[422078578,1778553057000,-733.3777153,0.00041181,30]
[422078577,1778553057000,-9617.69284702,0.00041181,30]
[422078576,1778553057000,-346.2879774,0.00041181,30]
[422078593,1778553057000,-161.14,0.00025342,30]
[422078582,1778553057000,-868.41,0.00031105,2]
[422078590,1778553057000,-12694.71215225,0.00021692,2]
[422078588,1778553057000,-350.65577333,0.00021692,2]
[422078592,1778553057000,-161.14,0.00025,7]
[422078591,1778553057000,-161.14,0.00024658,2]
[422078608,1778553057000,-154.0,0.00030591,30]
[422078607,1778553057000,-161.15,0.00026575,30]
[422078605,1778553057000,-161.14,0.00026356,2]
[422078604,1778553057000,-161.14,0.00026246,30]
[422078603,1778553057000,-327.87,0.00026229,7]
[422078600,1778553057000,-327.87,0.00026142,7]
[422078602,1778553057000,-327.87,0.000262,2]
[422078597,1778553057000,-327.87,0.00026084,2]
[422078598,1778553057000,-327.87,0.00026113,2]
[422078595,1778553057000,-327.87,0.00026027,2]
[422078599,1778553057000,-161.14,0.00026136,7]
[422078606,1778553057000,-161.14,0.00026465,7]
[422078596,1778553057000,-327.87,0.00026055,7]
[422078601,1778553057000,-327.87,0.00026171,7]
[422078594,1778553057000,-161.14,0.00026027,2]
[422078616,1778553058000,-429.41184255,0.0003904,30]
[422078611,1778553058000,-1089.45,0.00034105,2]
[422078618,1778553058000,-903.918479,0.00041096,120]
[422078613,1778553058000,-300.0,0.00037056,2]
[422078612,1778553058000,-300.0,0.00037056,2]
[422078609,1778553058000,-2760.59,0.00031105,2]
[422078614,1778553058000,-483.88780455,0.00037056,2]
[422078615,1778553058000,-309.70196001,0.00037056,2]
[422078617,1778553058000,-429.41184255,0.0003904,30]
[422078628,1778553058000,-903.918487,0.00041181,120]
[422078619,1778553058000,-903.918479,0.00041096,120]
[422078621,1778553058000,-903.918479,0.00041181,120]
[422078625,1778553058000,-903.918479,0.00041181,120]
[422078623,1778553058000,-903.918479,0.00041181,120]
[422078629,1778553058000,-4305.50439407,0.00041181,30]
[422078627,1778553058000,-903.918479,0.00041181,120]
[422078624,1778553058000,-903.918479,0.00041181,120]
[422078622,1778553058000,-903.918479,0.00041181,120]
[422078626,1778553058000,-903.918479,0.00041181,120]
[422078620,1778553058000,-151.0,0.00041181,120]
[422078610,1778553058000,-154.0,0.00031591,30]
[422078630,1778553119000,186.0,0.0002,2]
[422078631,1778553193000,156.0,0.0002,2]
[422078632,1778553513000,154.12,0.00011285,2]
[422078634,1778553513000,154.12,0.00014382,2]
[422078633,1778553513000,154.12,0.00012834,2]
[422078637,1778553514000,154.12,0.00019029,2]
[422078636,1778553514000,154.12,0.0001748,2]
[422078635,1778553514000,154.12,0.00015931,2]
[422078640,1778553631000,417.0,0.00027397,120]
[422078641,1778553823000,292.99727217,0.0002048,2]
[422078642,1778553903000,241.09766686,0.0002049,2]
[422078643,1778553904000,154.20248557,0.0002049,2]
[422078664,1778554231000,-2500.0,0.00020425,2]
[422078659,1778554231000,-177.0,0.0002,2]
[422078666,1778554231000,-152.38538152,0.0002049,2]
[422078663,1778554231000,-2500.0,0.00020425,2]
[422078665,1778554231000,-631.20418276,0.00020478,2]
[422078667,1778554231000,-150.73208603,0.0002049,2]
[422078668,1778554231000,-154.74566253,0.0002049,2]
[422078661,1778554231000,-1200.0,0.00020424,2]
[422078662,1778554231000,-300.0,0.00020424,2]
[422078670,1778554231000,-150.0,0.0002049,2]
[422078655,1778554231000,-82.04086833,0.00017648,2]
[422078660,1778554231000,-2500.0,0.00020239,2]
[422078658,1778554231000,-304.0,0.0002,2]
[422078656,1778554231000,-2417.95913167,0.00017648,2]
[422078657,1778554231000,-350.0,0.00018,2]
[422078681,1778554231000,-252.535585,0.00021111,2]
[422078654,1778554231000,-300.0,0.00016,2]
[422078653,1778554231000,-303.61484627,0.000154,2]
[422078651,1778554231000,-160.89,0.00014,2]
[422078649,1778554231000,-250.0,0.00014,2]
[422078652,1778554231000,-195.7,0.00014,2]
[422078669,1778554231000,-150.0,0.0002049,2]
[422078671,1778554231000,-154.12,0.00020578,2]
[422078682,1778554231000,-975.42,0.00021145,2]
[422078691,1778554231000,-5000.0,0.00021918,2]
[422078697,1778554231000,-154.12,0.00022127,2]
[422078695,1778554231000,-177.0,0.00022,2]
[422078696,1778554231000,-2500.0,0.00022,2]
[422078689,1778554231000,-169.12,0.0002177,2]
[422078688,1778554231000,-166.66,0.00021726,2]
[422078687,1778554231000,-150.0,0.00021629,4]
[422078692,1778554231000,-1988.82,0.00021927,2]
[422078673,1778554231000,-230.37770216,0.000208,2]
[422078694,1778554231000,-304.0,0.00022,2]
[422078686,1778554231000,-150.0,0.00021629,4]
[422078693,1778554231000,-200.0,0.00021997,2]
[422078685,1778554231000,-500.0,0.00021569,2]
[422078684,1778554231000,-150.0,0.00021485,2]
[422078683,1778554231000,-1000.0,0.00021421,2]
[422078680,1778554231000,-150.0,0.0002106,4]
[422078674,1778554231000,-2104.01394251,0.000209,2]
[422078678,1778554231000,-249.0,0.00021,2]
[422078676,1778554231000,-304.0,0.00021,2]
[422078677,1778554231000,-177.0,0.00021,2]
[422078679,1778554231000,-500.0,0.00021011,2]
[422078675,1778554231000,-161.20899857,0.00021,2]
[422078672,1778554231000,-150.0,0.0002078,2]
[422078690,1778554231000,-5063.38,0.00021832,2]
[422078701,1778554232000,-1001.91634798,0.00022335,2]
[422078703,1778554232000,-175.59,0.00022438,2]
[422078699,1778554232000,-150.0,0.00022198,4]
[422078706,1778554232000,-3180.78792267,0.00022692,2]
[422078698,1778554232000,-166.66,0.00022184,30]
[422078705,1778554232000,-21288.53244041,0.00022692,2]
[422078704,1778554232000,-166.66,0.00022641,30]
[422078700,1778554232000,-2195.1,0.00022333,2]
[422078713,1778554232000,-585.11007618,0.00022692,2]
[422078702,1778554232000,-370.0,0.00022336,2]
[422078712,1778554232000,-544.02,0.00022692,2]
[422078707,1778554232000,-1384.68337832,0.00022692,2]
[422078708,1778554232000,-2800.70070936,0.00022692,2]
[422078710,1778554232000,-2212.01251569,0.00022692,2]
[422078709,1778554232000,-468.75595281,0.00022692,2]
[422078714,1778554232000,-351.02307539,0.00022692,2]
[422078717,1778554232000,-9474.80762748,0.00022692,2]
[422078716,1778554232000,-342.48315084,0.00022692,2]
[422078715,1778554232000,-491.0360497,0.00022692,2]
[422078711,1778554232000,-1763.97926805,0.00022692,2]
[422078721,1778554237000,-3082.01820602,0.00022692,2]
[422078722,1778554237000,-13957.20014637,0.000227,2]
[422078720,1778554237000,-669.78492708,0.00022692,2]
[422078724,1778554237000,-516.70824417,0.000227,2]
[422078725,1778554237000,-737.32236735,0.000227,2]
[422078723,1778554237000,-568.38319446,0.000227,2]
[422078726,1778554238000,-4143.25905905,0.000227,2]
[422078791,1778554240000,-500.0,0.00022791,2]
[422078782,1778554240000,-500.0,0.00022791,2]
[422078788,1778554240000,-500.0,0.00022791,2]
[422078778,1778554240000,-500.0,0.00022791,2]
[422078787,1778554240000,-500.0,0.00022791,2]
[422078785,1778554240000,-500.0,0.00022791,2]
[422078786,1778554240000,-500.0,0.00022791,2]
[422078783,1778554240000,-500.0,0.00022791,2]
[422078784,1778554240000,-500.0,0.00022791,2]
[422078789,1778554240000,-368.99040378,0.00022791,2]
[422078790,1778554240000,-500.0,0.00022791,2]
[422078798,1778554240000,-500.0,0.00022791,2]
[422078801,1778554240000,-500.0,0.00022791,2]
[422078797,1778554240000,-500.0,0.00022791,2]
[422078799,1778554240000,-500.0,0.00022791,2]
[422078795,1778554240000,-500.0,0.00022791,2]
[422078792,1778554240000,-500.0,0.00022791,2]
[422078796,1778554240000,-500.0,0.00022791,2]
[422078794,1778554240000,-500.0,0.00022791,2]
[422078781,1778554240000,-500.0,0.00022791,2]
[422078810,1778554240000,-697.27,0.00022971,2]
[422078811,1778554240000,-304.0,0.00023,2]
[422078800,1778554240000,-500.0,0.00022791,2]
[422078803,1778554240000,-500.0,0.00022791,2]
[422078802,1778554240000,-500.0,0.00022791,2]
[422078793,1778554240000,-500.0,0.00022791,2]
[422078780,1778554240000,-500.0,0.00022791,2]
[422078766,1778554240000,-500.0,0.00022791,2]
[422078777,1778554240000,-500.0,0.00022791,2]
[422078804,1778554240000,-500.0,0.00022791,2]
[422078751,1778554240000,-315.59270239,0.000227,2]
[422078752,1778554240000,-14839.56253761,0.000227,2]
[422078763,1778554240000,-394.96860822,0.00022791,2]
[422078753,1778554240000,-26556.02719999,0.000227,2]
[422078755,1778554240000,-150.4673256,0.00022767,4]
[422078759,1778554240000,-500.0,0.00022791,2]
[422078758,1778554240000,-164.05581464,0.00022791,2]
[422078761,1778554240000,-500.0,0.00022791,2]
[422078756,1778554240000,-155.33429152,0.00022767,4]
[422078757,1778554240000,-500.0,0.00022791,2]
[422078754,1778554240000,-172.0,0.00022767,2]
[422078779,1778554240000,-500.0,0.00022791,2]
[422078760,1778554240000,-485.79673157,0.00022791,2]
[422078776,1778554240000,-500.0,0.00022791,2]
[422078764,1778554240000,-500.0,0.00022791,2]
[422078765,1778554240000,-232.96010364,0.00022791,2]
[422078775,1778554240000,-604.9027999,0.00022791,2]
[422078768,1778554240000,-500.0,0.00022791,2]
[422078769,1778554240000,-500.0,0.00022791,2]
[422078767,1778554240000,-500.0,0.00022791,2]
[422078770,1778554240000,-500.0,0.00022791,2]
[422078771,1778554240000,-500.0,0.00022791,2]
[422078774,1778554240000,-500.0,0.00022791,2]
[422078772,1778554240000,-500.0,0.00022791,2]
[422078773,1778554240000,-500.0,0.00022791,2]
[422078762,1778554240000,-384.95858779,0.00022791,2]
[422078805,1778554240000,-500.0,0.00022791,2]
[422078862,1778554240000,-155.93,0.00026392,2]
[422078807,1778554240000,-2500000.0,0.00022792,2]
[422078836,1778554240000,-155.93,0.00026027,2]
[422078840,1778554240000,-155.93,0.00026087,2]
[422078842,1778554240000,-155.93,0.00026118,2]
[422078837,1778554240000,-155.9,0.00026027,2]
[422078844,1778554240000,-155.93,0.00026148,7]
[422078846,1778554240000,-155.93,0.00026179,7]
[422078845,1778554240000,-155.9,0.00026148,7]
[422078847,1778554240000,-155.9,0.00026179,7]
[422078856,1778554240000,-155.93,0.00026301,2]
[422078848,1778554240000,-155.93,0.00026209,2]
[422078849,1778554240000,-155.9,0.00026209,2]
[422078851,1778554240000,-155.9,0.0002624,7]
[422078841,1778554240000,-155.9,0.00026087,2]
[422078852,1778554240000,-501.8654968,0.00026261,2]
[422078854,1778554240000,-155.93,0.0002627,2]
[422078855,1778554240000,-155.9,0.0002627,2]
[422078857,1778554240000,-155.9,0.00026301,2]
[422078860,1778554240000,-155.93,0.00026362,7]
[422078861,1778554240000,-155.9,0.00026362,7]
[422078859,1778554240000,-155.9,0.00026331,7]
[422078865,1778554240000,-155.9,0.00026423,7]
[422078866,1778554240000,-152.0,0.0002644,7]
[422078858,1778554240000,-155.93,0.00026331,7]
[422078864,1778554240000,-155.93,0.00026423,7]
[422078863,1778554240000,-155.9,0.00026392,2]
[422078809,1778554240000,-1094.38604953,0.00022891,10]
[422078853,1778554240000,-500.0,0.00026261,2]
[422078838,1778554240000,-155.93,0.00026057,7]
[422078850,1778554240000,-155.93,0.0002624,7]
[422078843,1778554240000,-155.9,0.00026118,2]
[422078839,1778554240000,-155.9,0.00026057,7]
[422078808,1778554240000,-156.77,0.000228,7]
[422078813,1778554240000,-166.66,0.00023098,30]
[422078812,1778554240000,-177.0,0.00023,2]
[422078822,1778554240000,-208.2157166,0.00024627,2]
[422078814,1778554240000,-166.66,0.00023556,30]
[422078815,1778554240000,-5301.58693313,0.000239,2]
[422078816,1778554240000,-500.0,0.00023973,2]
[422078818,1778554240000,-177.0,0.00024,2]
[422078817,1778554240000,-304.0,0.00024,2]
[422078821,1778554240000,-214.86625456,0.00024627,2]
[422078819,1778554240000,-166.66,0.00024013,30]
[422078820,1778554240000,-1000.0,0.00024521,2]
[422078806,1778554240000,-500.0,0.00022791,2]
[422078823,1778554240000,-193.37,0.00024658,2]
[422078834,1778554240000,-193.37,0.00026027,2]
[422078835,1778554240000,-193.37,0.00026027,7]
[422078827,1778554240000,-35078.02825132,0.00024742,2]
[422078833,1778554240000,-156.77,0.000252,7]
[422078825,1778554240000,-222.16,0.00024658,2]
[422078826,1778554240000,-1988.82,0.00024668,2]
[422078832,1778554240000,-178.0,0.00025,2]
[422078824,1778554240000,-222.21,0.00024658,2]
[422078828,1778554240000,-26556.02719995,0.00024742,2]
[422078830,1778554240000,-2077.81,0.0002498,2]
[422078829,1778554240000,-9999.99,0.0002498,2]
[422078831,1778554240000,-314.0,0.00025,2]
[422078867,1778554241000,-152.0,0.0002644,7]
[422078868,1778554241000,-155.93,0.00026453,2]
[422078870,1778554241000,-155.93,0.00026483,2]
[422078869,1778554241000,-155.9,0.00026453,2]
[422078871,1778554241000,-155.9,0.00026483,2]
[422078877,1778554241000,-156.08,0.00026575,2]
[422078872,1778554241000,-155.93,0.00026514,7]
[422078878,1778554241000,-156.02,0.00026575,2]
[422078875,1778554241000,-155.9,0.00026544,7]
[422078873,1778554241000,-155.9,0.00026514,7]
[422078876,1778554241000,-193.37,0.00026575,7]
[422078879,1778554241000,-35078.02825132,0.00026783,2]
[422078880,1778554241000,-25042.96358343,0.00026783,2]
[422078874,1778554241000,-155.93,0.00026544,7]
[422078881,1778554242000,-72.49621159,0.00026783,2]
[422078883,1778554242000,-1068.32136773,0.00026783,2]
[422078882,1778554242000,-332.11298935,0.00026783,2]
[422078884,1778554242000,-40.13304785,0.00026783,2]
[422078885,1778554242000,-150.0,0.00026849,2]
[422078886,1778554242000,-193.38,0.00027397,30]
[422078887,1778554242000,-806.48695215,0.00027397,10]
[422078894,1778554242000,-1988.82,0.00027409,2]
[422078893,1778554242000,-1270.57,0.000274,14]
[422078891,1778554242000,-2333.1,0.00027397,10]
[422078895,1778554242000,-156.77,0.000277,7]
[422078892,1778554242000,-176.71,0.000274,7]
[422078889,1778554242000,-3359.66,0.00027397,10]
[422078890,1778554242000,-2799.72,0.00027397,10]
[422078898,1778554242000,-9862.61813878,0.00028825,2]
[422078897,1778554242000,-150.0,0.00028192,2]
[422078896,1778554242000,-485.70384803,0.000278,7]
[422078888,1778554242000,-955.32304785,0.00027397,10]
[422078908,1778554243000,-147.72,0.00026087,2]
[422078905,1778554243000,-155.81,0.00026027,2]
[422078909,1778554243000,-155.81,0.00026118,2]
[422078906,1778554243000,-155.81,0.00026057,7]
[422078911,1778554243000,-261.68518065,0.00028825,2]
[422078907,1778554243000,-8.09,0.00026087,2]
[422078910,1778554243000,-155.81,0.00026148,7]
[422078925,1778554245000,-26556.02719995,0.00028825,2]
[422078923,1778554245000,-503.0,0.00027045,4]
[422078920,1778554245000,-155.81,0.00026362,7]
[422078919,1778554245000,-155.81,0.00026331,7]
[422078922,1778554245000,-155.81,0.00026423,7]
[422078918,1778554245000,-155.81,0.00026301,2]
[422078917,1778554245000,-57.95359059,0.0002627,2]
[422078926,1778554245000,-1229.1945092,0.00029519,2]
[422078916,1778554245000,-97.85640941,0.0002627,2]
[422078915,1778554245000,-155.81,0.0002624,7]
[422078914,1778554245000,-155.81,0.00026209,2]
[422078913,1778554245000,-155.81,0.00026179,7]
[422078912,1778554245000,-503.0,0.00024397,2]
[422078921,1778554245000,-155.81,0.00026392,2]
[422078927,1778554245000,-150.0,0.00029601,2]
[422078924,1778554245000,-24953.72493189,0.00028825,2]
[422078930,1778554245000,-304.0,0.00030587,30]
[422078944,1778554245000,-157.0,0.00031599,30]
[422078941,1778554245000,-177.0,0.00031587,30]
[422078943,1778554245000,-151.0,0.00031599,30]
[422078928,1778554245000,-503.0,0.00029693,7]
[422078936,1778554245000,-35078.02825132,0.00030866,2]
[422078937,1778554245000,-26556.02719995,0.00030866,2]
[422078934,1778554245000,-151.0,0.00030599,30]
[422078940,1778554245000,-162.94465727,0.00031587,30]
[422078942,1778554245000,-156.0,0.00031599,30]
[422078933,1778554245000,-156.0,0.00030599,30]
[422078932,1778554245000,-177.0,0.00030587,30]
[422078939,1778554245000,-304.0,0.00031587,30]
[422078931,1778554245000,-154.0,0.00030587,30]
[422078929,1778554245000,-1988.82,0.00030149,2]
[422078938,1778554245000,-1270.57,0.000314,14]
[422078935,1778554245000,-157.0,0.00030599,30]
[422078953,1778554246000,-304.0,0.00032587,30]
[422078951,1778554246000,-503.0,0.00032341,10]
[422078952,1778554246000,-5301.58693311,0.00032487,2]
[422078950,1778554246000,-136.62536372,0.00032159,2]
[422078946,1778554246000,-176.23423887,0.00032,120]
[422078948,1778554246000,-155.81,0.00026453,2]
[422078947,1778554246000,-560.64463628,0.00032159,2]
[422078945,1778554246000,-175.74682945,0.00032,120]
[422078956,1778554246000,-151.0,0.00032599,30]
[422078949,1778554246000,-155.81,0.00026483,2]
[422078957,1778554246000,-157.0,0.00032599,30]
[422078960,1778554246000,-128.43278733,0.00032908,2]
[422078954,1778554246000,-177.0,0.00032587,30]
[422078958,1778554246000,-156.77,0.000326,7]
[422078959,1778554246000,-1988.82,0.0003289,2]
[422078962,1778554246000,-447.58548906,0.00032908,2]
[422078963,1778554246000,-600.0,0.00032908,2]
[422078964,1778554246000,-1987.5,0.00032908,2]
[422078965,1778554246000,-16.47436724,0.00032908,2]
[422078966,1778554246000,-31898.03560769,0.00032908,2]
[422078967,1778554246000,-17908.61082119,0.00032908,2]
[422078968,1778554246000,-658.03402278,0.00032908,2]
[422078955,1778554246000,-156.0,0.00032599,30]
[422078972,1778554287000,500.0,0.00022791,2]
[422078973,1778554300000,340.23504112,0.00021827,2]
[422078975,1778554300000,210.0,0.00021827,2]
[422078976,1778554300000,157.0,0.00021827,2]
[422078977,1778554300000,157.0,0.00021827,2]
[422078979,1778554300000,152.0,0.00021827,2]
[422078978,1778554300000,160.0,0.00021827,2]
[422078980,1778554300000,159.0,0.00021827,2]
[422078974,1778554300000,154.0,0.00021827,2]
[422078982,1778554300000,651.0,0.00021827,2]
[422078983,1778554300000,156.0,0.00021827,2]
[422078987,1778554300000,221.4990997,0.00021827,2]
[422078984,1778554300000,1500.0,0.00021827,2]
[422078986,1778554300000,417.19061879,0.00021827,2]
[422078985,1778554300000,350.0,0.00021827,2]
[422078988,1778554300000,344.2004045,0.00021827,2]
[422078990,1778554300000,257.26,0.00021827,2]
[422078991,1778554300000,509.70647062,0.00021827,2]
[422078989,1778554300000,677.15,0.00021827,2]
[422078981,1778554300000,288.0,0.00021827,2]
[422078992,1778554463000,1591.15,0.00027397,120]
[422078993,1778554541000,152.0,0.00015123,2]
[422078995,1778554542000,152.0,0.00015128,2]
[422078994,1778554542000,152.0,0.00015123,2]
[422078996,1778554543000,152.0,0.00015128,2]
[422078997,1778554544000,152.0,0.00015132,2]
[422078999,1778554609000,5000.01,0.0002,30]
[422078998,1778554609000,5000.01,0.0002,30]
[422079001,1778554609000,5000.01,0.0002,30]
[422079000,1778554609000,5000.01,0.0002,30]
[422079002,1778554609000,5000.01,0.0002,30]
[422079004,1778554714000,493.37,0.00025887,120]
[422079006,1778554907000,-151.74535827,0.000114,2]
[422079007,1778554910000,-153.92,0.000114,2]
[422079008,1778555147000,-201.76391904,0.000107,2]
[422079009,1778555150000,-300.0,0.000107,2]
[422079010,1778555151000,-178.92319432,0.000107,2]
[422079011,1778555153000,-153.01446323,0.000107,2]
[422079012,1778555181000,181.16506521,0.0001,30]
[422079013,1778555241000,180.90843202,0.0001,30]
[422079015,1778555351000,1067.61,7.163e-05,2]
[422079016,1778555351000,1067.61,7.526e-05,2]
[422079017,1778555351000,1067.61,7.888e-05,2]
[422079019,1778555352000,1067.61,8.612e-05,2]
[422079018,1778555352000,1067.61,8.25e-05,2]
[422079020,1778555357000,-352.05742434,8.974e-05,2]
[422079021,1778555359000,-300.0,8.974e-05,2]
[422079022,1778555361000,-250.0,8.974e-05,2]
[422079023,1778555363000,-165.55257566,8.974e-05,2]
[422079024,1778555363000,-1067.61,9.337e-05,2]